bitfinex/quotes_BTCUSD_20250527
["timestamp","ask_amount","ask_price","bid_price","bid_amount"]
[1748369621503,0.30885356,110110.0,110100.0,0.04817825]
[1748369621717,0.32339441,110110.0,110100.0,0.04817825]
[1748369624340,0.32339441,110110.0,110100.0,0.59723871]
[1748369624605,0.12721702,110110.0,110100.0,0.61540376]
[1748369624839,0.05316257,110110.0,110100.0,1.15522119]
[1748369625056,0.06224423,110110.0,110100.0,1.15522119]
[1748369625280,0.06224414,110110.0,110100.0,1.15522119]
[1748369625505,0.19978081,110120.0,110110.0,0.57037701]
[1748369625730,0.20886148,110120.0,110110.0,1.40867747]
[1748369625976,0.2179424,110120.0,110110.0,1.42676616]
[1748369626206,0.2179424,110120.0,110110.0,1.41768483]
[1748369626430,0.20886214,110120.0,110110.0,1.41768483]
[1748369626661,0.20986214,110120.0,110110.0,1.417685]
[1748369626910,0.20986214,110120.0,110110.0,1.42676657]
[1748369627154,0.20986214,110120.0,110110.0,1.43584806]
[1748369627370,0.21894314,110120.0,110110.0,1.44492947]
[1748369627591,0.21894314,110120.0,110110.0,1.44484947]
[1748369628503,0.20986264,110120.0,110110.0,1.44484947]
[1748369628713,0.19170105,110120.0,110110.0,1.39966436]
[1748369628916,0.19170105,110120.0,110110.0,1.4087461]
[1748369629348,0.19170105,110120.0,110110.0,1.41782767]
[1748369629563,0.19170105,110120.0,110110.0,1.39966436]
[1748369629748,0.19170105,110120.0,110110.0,1.41782759]
[1748369629993,0.19170105,110120.0,110110.0,1.40874618]
[1748369631322,0.19170105,110120.0,110110.0,1.21802782]
[1748369631770,0.16562005,110120.0,110110.0,0.66896736]
[1748369631979,0.16562005,110120.0,110110.0,1.21802782]
[1748369632448,0.16562005,110120.0,110110.0,0.91986046]
[1748369632664,0.256674,110120.0,110110.0,1.20894046]
[1748369638569,0.256674,110120.0,110110.0,0.65988]
[1748369638775,0.239674,110120.0,110110.0,1.20894046]
[1748369639417,0.14862005,110120.0,110110.0,1.20894046]
[1748369639878,0.02824176,110120.0,110110.0,1.41782147]
[1748369640090,0.03732202,110120.0,110110.0,1.41782147]
[1748369640535,0.22802299,110120.0,110110.0,1.41782147]
[1748369640759,0.21894273,110120.0,110110.0,1.40874023]
[1748369641019,0.21894273,110120.0,110110.0,1.41782164]
[1748369641250,0.29183575,110120.0,110110.0,0.3708]
[1748369641482,0.29183575,110120.0,110110.0,0.65976]
[1748369642832,0.3063766,110120.0,110110.0,0.34]
[1748369643047,0.1907182,110110.0,110100.0,0.33112101]
[1748369643284,0.28177215,110110.0,110100.0,0.38220101]
[1748369644470,0.28177215,110110.0,110100.0,0.38320101]
[1748369644970,0.28177215,110110.0,110100.0,0.38420101]
[1748369645196,0.28177215,110110.0,110100.0,0.67312101]
[1748369645855,0.26477215,110110.0,110100.0,0.67312101]
[1748369646528,0.27385381,110110.0,110100.0,0.67312101]
[1748369649069,0.27385381,110110.0,110100.0,0.36840101]
[1748369649288,0.27385381,110110.0,110100.0,0.01260101]
[1748369649289,0.32099466,110110.0,110100.0,0.01260101]
[1748369653116,0.30399466,110110.0,110100.0,0.01260101]
[1748369653547,0.28779466,110110.0,110100.0,0.01260101]
[1748369653773,0.27139466,110110.0,110100.0,0.01260101]
[1748369654206,0.28709466,110110.0,110100.0,0.01260101]
[1748369655151,0.27139466,110110.0,110100.0,0.01260101]
[1748369655812,0.27139466,110110.0,110100.0,0.56166147]
[1748369656017,0.27139466,110110.0,110100.0,0.01260101]
[1748369657120,0.25685381,110110.0,110100.0,0.01260101]
[1748369660045,0.23985381,110110.0,110100.0,0.01260101]
[1748369662060,0.83615512,110110.0,110100.0,0.01260101]
[1748369662296,1.12491512,110110.0,110100.0,0.01260101]
[1748369662759,1.12491512,110110.0,110100.0,0.01160101]
[1748369663016,1.12491512,110110.0,110100.0,0.01060101]
[1748369663938,0.57585466,110110.0,110100.0,0.01060101]
[1748369664670,0.28709466,110110.0,110100.0,0.01060101]
[1748369667121,0.27009466,110110.0,110100.0,0.01060101]
[1748369667341,0.81915512,110110.0,110100.0,0.01060101]
[1748369668501,0.27009466,110110.0,110100.0,0.01060101]
[1748369669163,0.81915512,110110.0,110100.0,0.01060101]
[1748369669617,0.27009466,110110.0,110100.0,0.01060101]
[1748369674330,0.25309466,110110.0,110100.0,0.01060101]
[1748369675285,0.25309466,110110.0,110100.0,0.00996101]
[1748369680083,0.22039466,110110.0,110100.0,0.00996101]
[1748369680301,0.25219466,110110.0,110100.0,0.00996101]
[1748369680536,0.80125512,110110.0,110100.0,0.00996101]
[1748369681703,0.81125512,110110.0,110100.0,0.00996101]
[1748369681931,0.79425512,110110.0,110100.0,0.00996101]
[1748369684168,0.24519466,110110.0,110100.0,0.00996101]
[1748369684385,0.79425512,110110.0,110100.0,0.00996101]
[1748369684643,0.23519466,110110.0,110100.0,0.00996101]
[1748369684894,0.21919466,110110.0,110100.0,0.00996101]
[1748369685107,0.20339466,110110.0,110100.0,0.00996101]
[1748369688974,0.78495512,110110.0,110100.0,0.00996101]
[1748369689203,0.79495512,110110.0,110100.0,0.00996101]
[1748369689409,1.17499512,110110.0,110100.0,0.00996101]
[1748369689620,1.15799512,110110.0,110100.0,0.00996101]
[1748369689841,0.60893466,110110.0,110100.0,0.00996101]
[1748369690092,1.15799512,110110.0,110100.0,0.00996101]
[1748369692197,0.60893466,110110.0,110100.0,0.00996101]
[1748369692430,0.18639466,110110.0,110100.0,0.00996101]
[1748369692899,0.17185381,110110.0,110100.0,0.02556101]
[1748369693137,0.17185381,110110.0,110100.0,0.00996101]
[1748369694063,0.18639466,110110.0,110100.0,0.04216101]
[1748369695891,0.18639466,110110.0,110100.0,0.00996101]
[1748369696626,0.16939466,110110.0,110100.0,0.00996101]
[1748369697988,0.16939466,110110.0,110100.0,0.04206101]
[1748369698209,0.16939466,110110.0,110100.0,0.00996101]
[1748369700571,0.16939466,110110.0,110100.0,0.04146101]
[1748369701276,0.20139466,110110.0,110100.0,0.00996101]
[1748369701523,0.28971634,110110.0,110100.0,0.00996101]
[1748369702715,0.8387768,110110.0,110100.0,0.00996101]
[1748369702964,0.83879518,110110.0,110100.0,0.00149425]
[1748369703910,1.11063535,110110.0,110100.0,0.00149425]
[1748369704184,0.61157489,110110.0,110100.0,0.00149425]
[1748369706406,0.61160788,110110.0,110100.0,0.00149425]
[1748369706635,1.25172229,110110.0,110100.0,0.00149425]
[1748369706878,1.44780723,110110.0,110100.0,0.00149425]
[1748369708223,1.45080723,110110.0,110100.0,0.00149425]
[1748369708891,1.45380723,110110.0,110100.0,0.00149425]
[1748369710839,1.59772557,110110.0,110100.0,0.00149425]
[1748369711556,0.74982511,110110.0,110100.0,0.00149425]
[1748369711789,0.68292511,110110.0,110100.0,0.00149425]
[1748369713360,0.37782511,110110.0,110100.0,0.00149425]
[1748369713568,0.66642511,110110.0,110100.0,0.00149425]
[1748369714547,0.68222511,110110.0,110100.0,0.00149425]
[1748369715637,0.37782511,110110.0,110100.0,0.00149425]
[1748369715848,0.37782511,110110.0,110100.0,0.03279425]
[1748369716266,0.352313,110110.0,110100.0,0.03279425]
[1748369716908,0.346313,110110.0,110100.0,0.03279425]
[1748369717327,0.349313,110110.0,110100.0,0.03279425]
[1748369717868,0.332313,110110.0,110100.0,0.03279425]
[1748369725063,0.315313,110110.0,110100.0,0.03279425]
[1748369727441,0.315313,110110.0,110100.0,0.01659425]
[1748369727671,0.87997346,110110.0,110100.0,0.00149425]
[1748369727884,0.98653346,110110.0,110100.0,0.00149425]
[1748369730365,0.437473,110110.0,110100.0,0.00149425]
[1748369732121,0.420473,110110.0,110100.0,0.00149425]
[1748369732321,0.678233,110110.0,110100.0,0.00149425]
[1748369733235,0.298313,110110.0,110100.0,0.00149425]
[1748369733474,0.298313,110110.0,110100.0,0.03189425]
[1748369733698,0.28377215,110110.0,110100.0,0.03189425]
[1748369733933,0.298313,110110.0,110100.0,0.03189425]
[1748369735097,0.20279977,110110.0,110100.0,0.76487814]
[1748369735314,0.20279977,110110.0,110100.0,0.58095471]
[1748369735961,0.20279977,110110.0,110100.0,0.03189425]
[1748369739099,0.18579977,110110.0,110100.0,0.03189425]
[1748369739506,0.19488143,110110.0,110100.0,0.03189425]
[1748369740437,0.28593538,110110.0,110100.0,0.03189425]
[1748369746227,0.26893538,110110.0,110100.0,0.03189425]
[1748369746786,0.31893538,110110.0,110100.0,0.03189425]
[1748369747263,0.31893538,110110.0,110100.0,0.00149425]
[1748369750044,0.63735623,110110.0,110100.0,0.00149425]
[1748369750258,0.65295623,110110.0,110100.0,0.00149425]
[1748369750892,0.62195623,110110.0,110100.0,0.00149425]
[1748369752825,0.62195623,110110.0,110100.0,0.58065471]
[1748369752826,0.33347623,110110.0,110100.0,0.58065471]
[1748369753049,0.31893538,110110.0,110100.0,0.58065471]
[1748369753480,0.30193538,110110.0,110100.0,0.03159425]
[1748369753737,0.30193538,110110.0,110100.0,0.58065471]
[1748369753738,0.21088143,110110.0,110100.0,0.58065471]
[1748369754157,0.16088143,110110.0,110100.0,0.76230775]
[1748369754373,0.15179986,110110.0,110100.0,0.58065471]
[1748369755054,0.24285381,110110.0,110100.0,0.03159425]
[1748369757412,0.24285381,110110.0,110100.0,0.03386468]
[1748369758264,0.24285381,110110.0,110100.0,0.58292514]
[1748369758471,0.24285381,110110.0,110100.0,0.58065471]
[1748369759311,0.24285381,110110.0,110100.0,0.03159425]
[1748369760568,0.22585381,110110.0,110100.0,0.03159425]
[1748369764396,0.22585381,110110.0,110100.0,0.01659425]
[1748369764819,0.24039466,110110.0,110100.0,0.00149425]
[1748369765911,0.24039466,110110.0,110100.0,0.03289425]
[1748369766345,0.24039466,110110.0,110100.0,0.01779425]
[1748369767693,0.22339466,110110.0,110100.0,0.01779425]
[1748369768417,0.22339466,110110.0,110100.0,0.00149425]
[1748369769866,0.23959466,110110.0,110100.0,0.00149425]
[1748369771147,0.22339466,110110.0,110100.0,0.00149425]
[1748369771587,0.22339466,110110.0,110100.0,0.03299425]
[1748369771795,0.22339466,110110.0,110100.0,0.01669425]
[1748369771993,0.22339466,110110.0,110100.0,0.00149425]
[1748369773520,0.25499466,110110.0,110100.0,0.00149425]
[1748369773961,0.23979466,110110.0,110100.0,0.00149425]
[1748369774192,0.22339466,110110.0,110100.0,0.00149425]
[1748369774623,0.20639466,110110.0,110100.0,0.00149425]
[1748369776588,0.20639466,110110.0,110100.0,0.03389425]
[1748369776808,0.10079986,110110.0,110100.0,0.77596089]
[1748369777021,0.10079986,110110.0,110100.0,0.03389425]
[1748369777236,0.19185381,110110.0,110100.0,0.03389425]
[1748369778079,0.19085381,110110.0,110100.0,0.03389425]
[1748369779320,0.18885381,110110.0,110100.0,0.03389425]
[1748369781745,0.17185381,110110.0,110100.0,0.03389425]
[1748369785808,0.17185381,110110.0,110100.0,0.58295471]
[1748369786047,0.08079986,110110.0,110100.0,0.58295471]
[1748369788951,0.06379986,110110.0,110100.0,0.58295471]
[1748369793035,0.06379986,110110.0,110100.0,0.77369031]
[1748369793274,0.06379986,110110.0,110100.0,0.76460775]
[1748369793504,0.0547182,110110.0,110100.0,0.76460775]
[1748369793717,0.18162005,110120.0,110110.0,0.21223654]
[1748369793952,0.272674,110120.0,110110.0,0.0306]
[1748369794695,0.274674,110120.0,110110.0,0.0306]
[1748369795580,0.275674,110120.0,110110.0,0.0306]
[1748369795769,0.256674,110120.0,110110.0,0.0306]
[1748369796684,0.255674,110120.0,110110.0,0.0306]
[1748369796887,0.255674,110120.0,110110.0,0.0153]
[1748369799943,0.23805913,110110.0,110100.0,0.00149425]
[1748369800171,0.32911308,110110.0,110100.0,0.00149425]
[1748369801064,0.87817354,110110.0,110100.0,0.00149425]
[1748369801273,0.87817354,110110.0,110100.0,0.00249425]
[1748369801497,0.42035308,110110.0,110100.0,0.00249425]
[1748369801696,0.42135308,110110.0,110100.0,0.00149425]
[1748369801819,0.42335308,110110.0,110100.0,0.00149425]
[1748369802014,0.97241354,110110.0,110100.0,0.00149425]
[1748369802509,0.42335308,110110.0,110100.0,0.00149425]
[1748369803932,0.40635308,110110.0,110100.0,0.00149425]
[1748369804136,0.41543482,110110.0,110100.0,0.00149425]
[1748369807740,0.70367482,110110.0,110100.0,0.00149425]
[1748369808196,0.30799482,110110.0,110100.0,0.00149425]
[1748369808419,0.27685397,110110.0,110100.0,0.00149425]
[1748369808852,0.30749482,110110.0,110100.0,0.00149425]
[1748369810912,0.29049482,110110.0,110100.0,0.00149425]
[1748369814681,0.27439482,110110.0,110100.0,0.00149425]
[1748369817075,0.25985397,110110.0,110100.0,0.03279425]
[1748369817293,0.25985397,110110.0,110100.0,0.58185471]
[1748369818124,0.24285397,110110.0,110100.0,0.58185471]
[1748369818794,0.24285397,110110.0,110100.0,0.01659425]
[1748369819644,0.24285397,110110.0,110100.0,0.00149425]
[1748369820694,0.24285397,110110.0,110100.0,0.03309425]
[1748369821164,0.15180002,110110.0,110100.0,1.11516075]
[1748369821375,0.15180002,110110.0,110100.0,1.11289031]
[1748369821601,0.16088159,110110.0,110100.0,1.13105486]
[1748369821827,0.21188126,110110.0,110100.0,1.13105486]
[1748369822042,0.03932548,110110.0,110100.0,1.14013693]
[1748369822231,0.03732548,110110.0,110100.0,1.14013693]
[1748369822473,0.001,110110.0,110100.0,1.14113693]
[1748369822684,0.01916257,110110.0,110100.0,1.14113693]
[1748369823469,0.02724414,110110.0,110100.0,1.14113693]
[1748369823684,0.02724414,110110.0,110100.0,1.14213693]
[1748369824133,0.0090805,110120.0,110110.0,0.57918101]
[1748369824344,0.20886164,110120.0,110110.0,1.40732023]
[1748369824552,0.1997813,110120.0,110110.0,1.40732023]
[1748369824952,0.1997813,110120.0,110110.0,1.41640156]
[1748369825202,0.18162005,110120.0,110110.0,1.41640156]
[1748369825429,0.00907927,110140.0,110130.0,0.22287449]
[1748369825652,0.19974536,110140.0,110130.0,0.78101488]
[1748369825882,0.20882413,110140.0,110130.0,0.77193495]
[1748369826151,0.20882413,110140.0,110130.0,0.78101496]
[1748369826384,0.19974536,110140.0,110130.0,0.58126046]
[1748369826608,0.29079931,110140.0,110130.0,0.016]
[1748369827029,0.29079931,110140.0,110130.0,0.0324]
[1748369828866,0.29079931,110140.0,110130.0,0.58146046]
[1748369829285,0.18357058,110150.0,110140.0,0.18158707]
[1748369829494,0.03631608,110140.0,110130.0,0.54884317]
[1748369829702,0.02723681,110140.0,110130.0,0.54884317]
[1748369829982,0.03631608,110140.0,110130.0,0.58962277]
[1748369830179,0.2269825,110140.0,110130.0,0.58054317]
[1748369830321,0.20882487,110140.0,110130.0,0.57146349]
[1748369830543,0.20882487,110140.0,110130.0,0.57161161]
[1748369830749,0.20882487,110140.0,110130.0,1.12167207]
[1748369830945,0.20882487,110140.0,110130.0,1.13075191]
[1748369832264,0.19066642,110140.0,110130.0,1.13175191]
[1748369832713,0.19066642,110140.0,110130.0,1.11359214]
[1748369833157,0.19066642,110140.0,110130.0,1.12267207]
[1748369833363,0.19066642,110140.0,110130.0,1.13175191]
[1748369833810,0.19066642,110140.0,110130.0,1.11359214]
[1748369834335,0.19066642,110140.0,110130.0,1.12267207]
[1748369834506,0.19066642,110140.0,110130.0,0.92290858]
[1748369835105,0.19066642,110140.0,110130.0,0.37384812]
[1748369835329,0.19066642,110140.0,110130.0,0.34214812]
[1748369838666,0.19066642,110140.0,110130.0,0.37314812]
[1748369839327,0.17366642,110140.0,110130.0,0.34214812]
[1748369840425,0.17366642,110140.0,110130.0,0.35724812]
[1748369840626,0.17366642,110140.0,110130.0,0.92220858]
[1748369840823,0.17366642,110140.0,110130.0,0.89120858]
[1748369842025,0.17366642,110140.0,110130.0,0.34214812]
[1748369843000,0.26472037,110140.0,110130.0,0.34214812]
[1748369843216,0.29692037,110140.0,110130.0,0.34214812]
[1748369844040,0.28062037,110140.0,110130.0,0.34214812]
[1748369845567,0.26472037,110140.0,110130.0,0.52375167]
[1748369845776,0.25564102,110140.0,110130.0,0.92340858]
[1748369845984,0.25564102,110140.0,110130.0,1.10501213]
[1748369846196,0.25564102,110140.0,110130.0,0.92340858]
[1748369846375,0.23864102,110140.0,110130.0,0.92340858]
[1748369847865,0.23864102,110140.0,110130.0,1.10501213]
[1748369848884,0.23864102,110140.0,110130.0,0.92340858]
[1748369849450,0.23864102,110140.0,110130.0,0.37434812]
[1748369849665,0.23864102,110140.0,110130.0,0.34214812]
[1748369850091,0.26984102,110140.0,110130.0,0.34214812]
[1748369850309,0.28438187,110140.0,110130.0,0.00214812]
[1748369850905,0.25404102,110140.0,110130.0,0.00214812]
[1748369851157,0.23864102,110140.0,110130.0,0.00214812]
[1748369851362,0.23864102,110140.0,110130.0,0.21655167]
[1748369851580,0.14758707,110140.0,110130.0,0.58400858]
[1748369852205,0.15666634,110140.0,110130.0,0.79285199]
[1748369852411,0.16574536,110140.0,110130.0,0.801932]
[1748369852614,0.16574536,110140.0,110130.0,1.089772]
[1748369852834,0.01815762,110140.0,110130.0,1.43885119]
[1748369853042,0.01815738,110140.0,110130.0,1.42069092]
[1748369853245,0.01815762,110140.0,110130.0,1.42069092]
[1748369853421,0.18357058,110150.0,110140.0,0.56346625]
[1748369853633,0.18357058,110150.0,110140.0,1.11252671]
[1748369853839,0.002,110150.0,110140.0,1.11252688]
[1748369854063,0.1926491,110150.0,110140.0,1.11252688]
[1748369854262,0.1926491,110150.0,110140.0,1.12160615]
[1748369855933,0.21080573,110150.0,110140.0,1.13976411]
[1748369856491,0.002,110150.0,110140.0,1.23080411]
[1748369856717,0.002,110150.0,110140.0,1.42074888]
[1748369856924,0.01107778,110150.0,110140.0,1.37919888]
[1748369857139,0.0383122,110150.0,110140.0,1.23988288]
[1748369857353,0.03831212,110150.0,110140.0,1.23988288]
[1748369857562,0.02015573,110150.0,110140.0,1.46023688]
[1748369857780,0.02923384,110150.0,110140.0,1.46223688]
[1748369857998,0.02923384,110150.0,110140.0,1.46423688]
[1748369858198,0.02015573,110150.0,110140.0,1.46423688]
[1748369858410,0.002,110150.0,110140.0,1.46423688]
[1748369859492,0.002,110150.0,110140.0,1.55529083]
[1748369860499,0.19577006,110170.0,110160.0,0.58088621]
[1748369860698,0.19577006,110170.0,110160.0,1.41770667]
[1748369861302,0.19577006,110170.0,110160.0,1.40862955]
[1748369861510,0.19577006,110170.0,110160.0,1.41770684]
[1748369862411,0.01815301,110170.0,110160.0,1.42678396]
[1748369862629,0.02722972,110170.0,110160.0,1.42636674]
[1748369862843,0.21784422,110170.0,110160.0,1.41728962]
[1748369863296,0.20876784,110170.0,110160.0,1.39955218]
[1748369863539,0.20876784,110170.0,110160.0,1.40862972]
[1748369863762,0.20876784,110170.0,110160.0,1.4267843]
[1748369863980,0.02723022,110170.0,110160.0,1.43586142]
[1748369864726,0.01815334,110170.0,110160.0,1.43586142]
[1748369865683,0.02723013,110170.0,110160.0,1.43586142]
[1748369865887,0.01815334,110170.0,110160.0,1.43586142]
[1748369866100,0.01815235,110170.0,110160.0,1.50900626]
[1748369866629,0.02722873,110170.0,110160.0,1.50900626]
[1748369867377,0.03630536,110170.0,110160.0,1.50900626]
[1748369867604,0.02722873,110170.0,110160.0,1.22124626]
[1748369867837,0.03630528,110170.0,110160.0,1.50888626]
[1748369868113,0.02722964,110170.0,110160.0,1.50888626]
[1748369868355,0.03630528,110170.0,110160.0,1.50888626]
[1748369868613,0.04538191,110170.0,110160.0,1.50888626]
[1748369868827,0.03630528,110170.0,110160.0,1.50888626]
[1748369870025,0.002,110190.0,110180.0,0.22474831]
[1748369870250,0.002,110190.0,110180.0,2.27081272]
[1748369871348,0.0024923,110190.0,110180.0,2.27081272]
[1748369871564,0.0024923,110190.0,110180.0,2.27181272]
[1748369873337,0.0024923,110190.0,110180.0,2.27281272]
[1748369874239,0.0024923,110190.0,110180.0,2.02649672]
[1748369875357,0.0217882,110200.0,110190.0,0.78958983]
[1748369875580,0.20869237,110210.0,110200.0,0.53963643]
[1748369875808,0.20869237,110210.0,110200.0,0.81812244]
[1748369876027,0.19961912,110210.0,110200.0,1.3671829]
[1748369876465,0.19961912,110210.0,110200.0,1.37625706]
[1748369876887,0.19961912,110210.0,110200.0,1.35810866]
[1748369877112,0.19054562,110210.0,110200.0,1.35810866]
[1748369877324,0.19054562,110210.0,110200.0,1.36718298]
[1748369877554,0.19254562,110210.0,110200.0,1.35810866]
[1748369877774,0.19354562,110210.0,110200.0,1.37625723]
[1748369877995,0.19354562,110210.0,110200.0,1.38533122]
[1748369878182,0.19354562,110210.0,110200.0,1.38533131]
[1748369878463,0.19354562,110210.0,110200.0,1.37625731]
[1748369878675,0.19354562,110210.0,110200.0,1.38533147]
[1748369879183,0.19354562,110210.0,110200.0,1.39440555]
[1748369879629,0.19354562,110210.0,110200.0,1.36718307]
[1748369881106,0.18447204,110210.0,110200.0,1.18569487]
[1748369882017,0.18447204,110210.0,110200.0,1.36718307]
[1748369882449,0.16747204,110210.0,110200.0,1.36718307]
[1748369882899,0.16747204,110210.0,110200.0,1.38533139]
[1748369883121,0.17654546,110210.0,110200.0,1.39440538]
[1748369884056,0.17654546,110210.0,110200.0,1.42540538]
[1748369884306,0.0302191,110210.0,110200.0,1.43447921]
[1748369884779,0.03021902,110210.0,110200.0,1.43447921]
[1748369885019,0.03021902,110210.0,110200.0,0.88541875]
[1748369885288,0.04636585,110210.0,110200.0,1.43447921]
[1748369885804,0.03729235,110210.0,110200.0,1.43447921]
[1748369886220,0.04536577,110210.0,110200.0,1.43447921]
[1748369886424,0.03629244,110210.0,110200.0,1.43447921]
[1748369886638,0.03629235,110210.0,110200.0,1.43447921]
[1748369886851,0.04536577,110210.0,110200.0,1.43447921]
[1748369887286,0.01814576,110210.0,110200.0,1.43447921]
[1748369887505,0.02721885,110210.0,110200.0,1.43447921]
[1748369887716,0.0362921,110210.0,110200.0,1.43447921]
[1748369888144,0.03629202,110210.0,110200.0,0.88541875]
[1748369888372,0.04536535,110210.0,110200.0,1.43447921]
[1748369888787,0.03629202,110210.0,110200.0,1.43447921]
[1748369888999,0.04536535,110210.0,110200.0,1.43447921]
[1748369889232,0.04536535,110210.0,110200.0,1.14691921]
[1748369889457,0.02721992,110210.0,110200.0,1.43431921]
[1748369889878,0.02721959,110210.0,110200.0,1.43431921]
[1748369890437,0.23276474,110210.0,110200.0,0.88906046]
[1748369890663,0.23276474,110210.0,110200.0,0.5214882]
[1748369890664,0.23021848,110210.0,110200.0,0.5214882]
[1748369890888,0.23021848,110210.0,110200.0,0.34]
[1748369890889,0.22114515,110210.0,110200.0,0.34]
[1748369891108,0.22114515,110210.0,110200.0,0.88906046]
[1748369891321,0.22114515,110210.0,110200.0,0.34]
[1748369895087,0.22114515,110210.0,110200.0,0.5214882]
[1748369895289,0.22114515,110210.0,110200.0,0.53056261]
[1748369895548,0.21207173,110210.0,110200.0,0.88906046]
[1748369895760,0.21207173,110210.0,110200.0,1.07054866]
[1748369896545,0.19507173,110210.0,110200.0,1.07054866]
[1748369897048,0.19507173,110210.0,110200.0,1.07962307]
[1748369897268,0.19507173,110210.0,110200.0,0.89813487]
[1748369897402,0.19507173,110210.0,110200.0,0.88906046]
[1748369897605,0.19507173,110210.0,110200.0,1.07054866]
[1748369897858,0.19507173,110210.0,110200.0,1.07962307]
[1748369897999,0.19507173,110210.0,110200.0,1.08869739]
[1748369898900,0.19507173,110210.0,110200.0,1.09777163]
[1748369899133,0.19507173,110210.0,110200.0,1.07962307]
[1748369899260,0.19507173,110210.0,110200.0,1.08869739]
[1748369899495,0.00907317,110210.0,110200.0,1.1068453]
[1748369899698,0.02721951,110210.0,110200.0,1.1068453]
[1748369901189,0.20563897,110220.0,110200.0,1.09777098]
[1748369901417,0.2147114,110220.0,110210.0,0.7486791]
[1748369902298,0.22163897,110220.0,110200.0,1.12847032]
[1748369902516,0.0090735,110210.0,110200.0,1.09777032]
[1748369903724,0.20463979,110220.0,110200.0,1.09777032]
[1748369904144,0.00907342,110210.0,110200.0,1.09777032]
[1748369905085,0.01814692,110210.0,110200.0,1.09777032]
[1748369906097,0.02722025,110210.0,110200.0,1.09777032]
[1748369906284,0.20869198,110210.0,110200.0,1.09777032]
[1748369906909,0.02722025,110210.0,110200.0,1.09777032]
[1748369907120,0.03629334,110210.0,110200.0,1.09777032]
[1748369908075,0.04536635,110210.0,110200.0,1.09777032]
[1748369909428,0.0181461,110210.0,110200.0,1.09777032]
[1748369910053,0.03629269,110210.0,110200.0,1.09777032]
[1748369910594,0.01814659,110210.0,110200.0,1.09777032]
[1748369911205,0.02721968,110210.0,110200.0,1.38501032]
[1748369911620,0.05189269,110210.0,110200.0,1.37593657]
[1748369911832,0.23131832,110210.0,110200.0,0.34]
[1748369912491,0.22226244,110200.0,110190.0,0.34013425]
[1748369913701,0.22226244,110200.0,110190.0,0.34113425]
[1748369915031,0.22226244,110200.0,110190.0,0.52363892]
[1748369915881,0.2313366,110200.0,110190.0,0.53271407]
[1748369917727,0.20526244,110200.0,110190.0,0.53271407]
[1748369918014,0.21433668,110200.0,110190.0,0.34213425]
[1748369918212,0.21433668,110200.0,110190.0,0.52363892]
[1748369918434,0.21433668,110200.0,110190.0,0.53271415]
[1748369920001,0.20526244,110200.0,110190.0,0.34213425]
[1748369920212,0.20526244,110200.0,110190.0,0.53271407]
[1748369920413,0.20526244,110200.0,110190.0,0.54178913]
[1748369921014,0.20526244,110200.0,110190.0,0.53271407]
[1748369922162,0.20526244,110200.0,110190.0,0.52363892]
[1748369922614,0.20526244,110200.0,110190.0,0.53271415]
[1748369922827,0.8599177,110200.0,110190.0,0.00213425]
[1748369923037,0.68877724,110200.0,110190.0,0.00213425]
[1748369923897,0.68877724,110200.0,110190.0,0.00113425]
[1748369924219,0.68877724,110200.0,110190.0,0.00013425]
[1748369924804,0.67177724,110200.0,110190.0,0.00013425]
[1748369926158,0.29385724,110200.0,110190.0,0.00013425]
[1748369926302,0.67177724,110200.0,110190.0,0.00013425]
[1748369930358,1.2208377,110200.0,110190.0,0.00013425]
[1748369930993,0.67177724,110200.0,110190.0,0.00013425]
[1748369931774,0.65477724,110200.0,110190.0,0.00013425]
[1748369933917,2.09289816,110200.0,110190.0,0.00013425]
[1748369934336,2.10289816,110200.0,110190.0,0.00013425]
[1748369934590,3.11470178,110200.0,110190.0,0.00013425]
[1748369935176,3.11770178,110200.0,110190.0,0.00013425]
[1748369935567,3.12070178,110200.0,110190.0,0.00013425]
[1748369936325,3.09529816,110200.0,110190.0,0.00013425]
[1748369937502,3.14976816,110200.0,110190.0,0.00013425]
[1748369938855,3.13276816,110200.0,110190.0,0.00013425]
[1748369940243,2.5837077,110200.0,110190.0,0.00013425]
[1748369940447,2.2057877,110200.0,110190.0,0.00013425]
[1748369940691,2.5835877,110200.0,110190.0,0.00013425]
[1748369942326,3.13264816,110200.0,110190.0,0.00013425]
[1748369944883,2.5835877,110200.0,110190.0,0.00013425]
[1748369945773,2.2057877,110200.0,110190.0,0.00013425]
[1748369946008,2.82848816,110200.0,110190.0,0.00013425]
[1748369946263,3.11564816,110200.0,110190.0,0.00013425]
[1748369946511,2.1243177,110200.0,110190.0,0.00013425]
[1748369946719,1.22071639,110200.0,110190.0,0.00013425]
[1748369946937,1.27965639,110200.0,110190.0,0.00013425]
[1748369947156,1.56681639,110200.0,110190.0,0.00013425]
[1748369947374,1.59735724,110200.0,110190.0,0.00013425]
[1748369947624,1.58281639,110200.0,110190.0,0.00013425]
[1748369948042,1.31019724,110200.0,110190.0,0.00013425]
[1748369948228,1.58135724,110200.0,110190.0,0.00013425]
[1748369948869,0.71715724,110200.0,110190.0,0.00013425]
[1748369949083,0.80779724,110200.0,110190.0,0.00013425]
[1748369949300,0.70261639,110200.0,110190.0,0.00013425]
[1748369949521,0.79325639,110200.0,110190.0,0.03253425]
[1748369949764,0.80779724,110200.0,110190.0,0.01603425]
[1748369949987,0.80479724,110200.0,110190.0,0.01603425]
[1748369950226,0.80379724,110200.0,110190.0,0.01603425]
[1748369950412,0.80479724,110200.0,110190.0,0.01603425]
[1748369950628,0.80479724,110200.0,110190.0,0.00013425]
[1748369953176,0.78779724,110200.0,110190.0,0.00013425]
[1748369954795,0.78779724,110200.0,110190.0,0.03163425]
[1748369955916,0.69715724,110200.0,110190.0,0.03163425]
[1748369956068,1.07487724,110200.0,110190.0,0.03163425]
[1748369959613,0.59405395,110200.0,110190.0,0.03163425]
[1748369959808,0.18152723,110250.0,110230.0,0.0313]
[1748369960007,0.10012482,110240.0,110230.0,0.62963136]
[1748369960209,0.00907087,110240.0,110230.0,0.0313]
[1748369960412,0.02721186,110240.0,110230.0,0.03356779]
[1748369960620,0.03628289,110240.0,110230.0,0.0313]
[1748369960881,0.5752586,110260.0,110240.0,0.19049338]
[1748369960882,0.2721186,110260.0,110240.0,0.19049338]
[1748369961086,0.20861553,110250.0,110240.0,0.21352235]
[1748369961634,0.20861553,110250.0,110240.0,0.22259346]
[1748369961822,0.20861553,110250.0,110240.0,0.21352235]
[1748369962038,0.19047602,110250.0,110240.0,0.21352235]
[1748369962608,0.19247602,110250.0,110240.0,0.21352235]
[1748369963683,0.19347602,110250.0,110240.0,0.21352235]
[1748369964154,0.19347602,110250.0,110240.0,0.0321]
[1748369964345,0.20863511,110240.0,110230.0,0.82981379]
[1748369964552,0.02721276,110240.0,110230.0,0.8388854]
[1748369964754,0.20863511,110240.0,110230.0,0.8207421]
[1748369964983,0.01814165,110240.0,110230.0,0.83888572]
[1748369965184,0.21770614,110240.0,110230.0,0.84795741]
[1748369965803,0.20863536,110240.0,110230.0,0.82981395]
[1748369966018,0.19956449,110240.0,110230.0,0.82981395]
[1748369966755,0.19956449,110240.0,110230.0,0.83888572]
[1748369967358,0.18256449,110240.0,110230.0,0.83888572]